fUST/lending_fUST_20250109
["ID","MTS","AMOUNT","RATE_DAILY","PERIOD"]
[348211894,1736393528167,-500.0,0.00019178,2]
[348211895,1736393528191,-450.616756,0.00019178,2]
[348211896,1736393528214,-500.0,0.00019178,2]
[348211897,1736393528238,-500.0,0.00019178,2]
[348211898,1736393528262,-450.616756,0.00019178,2]
[348211899,1736393528286,-500.0,0.00019178,2]
[348211900,1736393528311,-500.0,0.00019178,2]
[348211901,1736393528335,-500.0,0.00019178,2]
[348211902,1736393528360,-500.0,0.00019178,2]
[348211903,1736393528385,-500.0,0.00019178,2]
[348211904,1736393528409,-500.0,0.00019178,2]
[348211905,1736393528432,-500.0,0.00019178,2]
[348211906,1736393528455,-524.64008166,0.00019178,2]
[348211907,1736393528479,-500.0,0.00019178,2]
[348211908,1736393528503,-500.0,0.00019178,2]
[348211909,1736393528534,-500.0,0.00019178,2]
[348211910,1736393528558,-500.0,0.00019178,2]
[348211911,1736393528581,-500.0,0.00019178,2]
[348211912,1736393528604,-421.55666607,0.00019178,2]
[348211913,1736393528630,-500.0,0.00019178,2]
[348211914,1736393528653,-151.0,0.00019178,2]
[348211915,1736393528678,-500.0,0.00019178,2]
[348211916,1736393528703,-503.96762112,0.00019178,2]
[348211917,1736393528730,-504.67840833,0.00019178,2]
[348211918,1736393528757,-500.0,0.00019178,2]
[348211919,1736393528783,-500.0,0.00019178,2]
[348211920,1736393528809,-500.0,0.00019178,2]
[348211921,1736393528834,-500.0,0.00019178,2]
[348211922,1736393528860,-500.0,0.00019178,2]
[348211923,1736393528886,-500.0,0.00019178,2]
[348211924,1736393528910,-500.0,0.00019178,2]
[348211925,1736393528937,-500.0,0.00019178,2]
[348211926,1736393528961,-500.0,0.00019178,2]
[348211927,1736393528985,-500.0,0.00019178,2]
[348211928,1736393529008,-500.0,0.00019178,2]
[348211929,1736393529035,-500.0,0.00019178,2]
[348211930,1736393529059,-500.0,0.00019178,2]
[348211931,1736393529084,-249.4576928,0.00019178,2]
[348211932,1736393529108,-500.0,0.00019178,2]
[348211933,1736393529134,-500.0,0.00019178,2]
[348211934,1736393529160,-1219.990576,0.00019178,2]
[348211935,1736393529184,-314.30470029,0.00019178,2]
[348211936,1736393529209,-500.0,0.00019178,2]
[348211937,1736393529236,-500.0,0.00019178,2]
[348211938,1736393529261,-500.0,0.00019178,2]
[348211939,1736393529286,-1219.990576,0.00019178,2]
[348211940,1736393529311,-500.0,0.00019178,2]
[348211941,1736393529337,-500.0,0.00019178,2]
[348211942,1736393529363,-500.0,0.00019178,2]
[348211943,1736393529388,-500.0,0.00019178,2]
[348211944,1736393529413,-2786.15054674,0.00019178,2]
[348211945,1736393548205,-50000.0,0.00019178,2]
[348211947,1736394172359,158.234368,0.00013973,2]
[348211948,1736394341119,-741.9227822,0.00018053,2]
[348211955,1736394429141,-300.0,0.00018052,2]
[348211956,1736394429168,-4534.20225943,0.00018053,2]
[348211957,1736394434126,-859.34188858,0.00018053,2]
[348211958,1736394436089,-6069.94006873,0.00018053,2]
[348211959,1736394447126,-1252.30540653,0.00018053,2]
[348211960,1736394450130,-756.33512228,0.00018053,2]
[348211962,1736394563110,-216.94973219,0.00018053,2]
[348211963,1736394563132,-159.99221599,0.00018153,2]
[348212000,1736394637556,-95.24255881,0.00018153,2]
[348212001,1736394637567,-1197.60806508,0.00018978,2]
[348212004,1736394637576,-302.90913937,0.00019,2]
[348212005,1736394637586,-302.63687509,0.00019,2]
[348212007,1736394637595,-101.60336165,0.00019078,2]
[348212010,1736394637607,-80.02641566,0.00019078,2]
[348212012,1736394637617,-175.43212916,0.00019078,2]
[348212014,1736394637626,-153.68474119,0.000191,4]
[348212016,1736394637636,-54.09681399,0.00019111,2]
[348212026,1736394637924,-245.90318601,0.00019111,2]
[348212027,1736394637935,-9677.42369375,0.00019112,2]
[348212028,1736394637946,-153.87,0.00019177,2]
[348212029,1736394637956,-500.0,0.00019177,2]
[348212030,1736394637966,-520.52377585,0.00019177,2]
[348212031,1736394637976,-155.62498301,0.00019177,2]
[348212032,1736394637986,-178.212008,0.00019178,2]
[348212033,1736394637995,-178.212008,0.00019178,2]
[348212034,1736394638005,-123.37084537,0.00019178,2]
[348212035,1736394638017,-148.46020263,0.00019178,2]
[348212036,1736394638026,-500.0,0.00019178,2]
[348212037,1736394638035,-500.0,0.00019178,2]
[348212038,1736394638047,-500.0,0.00019178,2]
[348212039,1736394638058,-500.0,0.00019178,2]
[348212040,1736394638069,-500.0,0.00019178,2]
[348212041,1736394638078,-319.12041346,0.00019178,2]
[348212042,1736394638087,-500.0,0.00019178,2]
[348212043,1736394638097,-505.20306396,0.00019178,2]
[348212044,1736394638106,-500.0,0.00019178,2]
[348212046,1736394638116,-517.75024723,0.00019178,2]
[348212048,1736394638126,-500.0,0.00019178,2]
[348212050,1736394638138,-519.15565448,0.00019178,2]
[348212052,1736394638147,-513.4305025,0.00019178,2]
[348212054,1736394638157,-516.29739067,0.00019178,2]
[348212056,1736394638166,-512.01075229,0.00019178,2]
[348212058,1736394638175,-500.0,0.00019178,2]
[348212060,1736394638184,-508.78409016,0.00019178,5]
[348212062,1736394638194,-500.0,0.00019178,2]
[348212064,1736394638203,-333.65939082,0.00019178,2]
[348212066,1736394638212,-500.0,0.00019178,2]
[348212068,1736394638221,-498.14582636,0.00019178,2]
[348212070,1736394638231,-500.0,0.00019178,2]
[348212072,1736394638244,-504.62184472,0.00019178,2]
[348212074,1736394638253,-505.94262149,0.00019178,2]
[348212076,1736394638263,-500.0,0.00019178,2]
[348212078,1736394638272,-500.0,0.00019178,2]
[348212079,1736394638281,-500.0,0.00019178,2]
[348212081,1736394638290,-500.0,0.00019178,2]
[348212084,1736394638299,-500.0,0.00019178,2]
[348212086,1736394638309,-500.0,0.00019178,2]
[348212088,1736394638319,-500.0,0.00019178,2]
[348212089,1736394638328,-500.0,0.00019178,2]
[348212091,1736394638338,-500.0,0.00019178,2]
[348212094,1736394638348,-500.0,0.00019178,2]
[348212096,1736394638357,-507.17617961,0.00019178,2]
[348212098,1736394638367,-500.0,0.00019178,2]
[348212100,1736394638376,-500.0,0.00019178,2]
[348212102,1736394638385,-500.0,0.00019178,2]
[348212104,1736394638395,-508.58900788,0.00019178,2]
[348212106,1736394638404,-505.37387658,0.00019178,2]
[348212108,1736394638414,-500.0,0.00019178,2]
[348212110,1736394638424,-500.0,0.00019178,2]
[348212112,1736394638433,-500.0,0.00019178,2]
[348212114,1736394638443,-500.0,0.00019178,2]
[348212116,1736394638452,-506.59347866,0.00019178,2]
[348212118,1736394638461,-500.0,0.00019178,2]
[348212120,1736394638471,-500.0,0.00019178,2]
[348212122,1736394638480,-500.0,0.00019178,2]
[348212124,1736394638490,-1978.04,0.00019178,2]
[348212126,1736394638499,-500.0,0.00019178,2]
[348212128,1736394638509,-500.0,0.00019178,2]
[348212130,1736394638518,-500.0,0.00019178,2]
[348212132,1736394638528,-500.0,0.00019178,2]
[348212134,1736394638537,-514.49525176,0.00019178,2]
[348212136,1736394638546,-500.0,0.00019178,2]
[348212138,1736394638556,-500.0,0.00019178,2]
[348212140,1736394638565,-500.0,0.00019178,2]
[348212142,1736394638575,-500.0,0.00019178,2]
[348212144,1736394638584,-31.61264307,0.00019178,2]
[348212146,1736394638597,-232.35853052,0.00019178,2]
[348212148,1736394638606,-500.0,0.00019178,2]
[348212150,1736394638616,-437.60274106,0.00019178,2]
[348212152,1736394638625,-500.0,0.00019178,2]
[348212154,1736394638634,-500.0,0.00019178,2]
[348212156,1736394638644,-514.85873289,0.00019178,2]
[348212158,1736394638655,-517.42593752,0.00019178,2]
[348212160,1736394638665,-500.0,0.00019178,2]
[348212162,1736394638674,-510.51884615,0.00019178,2]
[348212164,1736394638683,-500.0,0.00019178,2]
[348212166,1736394638693,-500.0,0.00019178,2]
[348212168,1736394638702,-500.0,0.00019178,2]
[348212170,1736394638711,-277.16853586,0.00019178,2]
[348212173,1736394638723,-222.83146414,0.00019178,2]
[348212175,1736394638734,-130.77604397,0.00019178,2]
[348212178,1736394638760,-369.22395603,0.00019178,2]
[348212180,1736394638770,-500.0,0.00019178,2]
[348212182,1736394638779,-500.0,0.00019178,2]
[348212184,1736394638789,-500.0,0.00019178,2]
[348212196,1736394638887,-500.0,0.00019178,2]
[348212198,1736394638897,-500.0,0.00019178,2]
[348212201,1736394638907,-554.83590996,0.00019178,2]
[348212203,1736394638916,-500.0,0.00019178,2]
[348212205,1736394638926,-500.0,0.00019178,2]
[348212207,1736394638936,-500.0,0.00019178,2]
[348212209,1736394638946,-500.0,0.00019178,2]
[348212211,1736394638956,-500.0,0.00019178,2]
[348212213,1736394638965,-500.0,0.00019178,2]
[348212215,1736394638975,-500.0,0.00019178,2]
[348212217,1736394638984,-981.9,0.00019178,2]
[348212219,1736394638994,-500.0,0.00019178,2]
[348212221,1736394639003,-517.56311119,0.00019178,2]
[348212223,1736394639013,-500.0,0.00019178,2]
[348212225,1736394639022,-396.93570962,0.00019178,2]
[348212227,1736394639032,-500.0,0.00019178,2]
[348212229,1736394639041,-506.49559596,0.00019178,2]
[348212231,1736394639050,-500.0,0.00019178,2]
[348212233,1736394639059,-500.87573261,0.00019178,2]
[348212235,1736394639068,-464.31814804,0.00019178,2]
[348212237,1736394639078,-502.08805492,0.00019178,2]
[348212239,1736394639087,-415.01865452,0.00019178,2]
[348212241,1736394639096,-500.0,0.00019178,2]
[348212243,1736394639105,-500.0,0.00019178,2]
[348212245,1736394639115,-429.62550413,0.00019178,2]
[348212247,1736394639124,-500.0,0.00019178,2]
[348212249,1736394639138,-500.0,0.00019178,2]
[348212251,1736394639147,-500.0,0.00019178,2]
[348212254,1736394639156,-500.0,0.00019178,2]
[348212256,1736394639165,-500.0,0.00019178,2]
[348212258,1736394639175,-500.0,0.00019178,2]
[348212260,1736394639184,-500.0,0.00019178,2]
[348212261,1736394639193,-507.12642617,0.00019178,2]
[348212264,1736394639203,-500.0,0.00019178,2]
[348212265,1736394639212,-231.55837867,0.00019178,2]
[348212267,1736394639222,-500.0,0.00019178,2]
[348212270,1736394639231,-500.0,0.00019178,2]
[348212272,1736394639240,-500.0,0.00019178,2]
[348212274,1736394639250,-500.0,0.00019178,2]
[348212276,1736394639259,-500.0,0.00019178,2]
[348212278,1736394639269,-518.73279136,0.00019178,2]
[348212280,1736394639278,-502.38731703,0.00019178,2]
[348212282,1736394639287,-58946.48,0.00019178,2]
[348212284,1736394639295,-500.0,0.00019178,2]
[348212285,1736394639304,-500.0,0.00019178,2]
[348212288,1736394639315,-511.03480335,0.00019178,2]
[348212289,1736394639329,-500.0,0.00019178,2]
[348212292,1736394639341,-558.35,0.00019178,2]
[348212294,1736394639350,-500.0,0.00019178,2]
[348212296,1736394639360,-500.0,0.00019178,2]
[348212298,1736394639369,-1071.29,0.00019178,2]
[348212300,1736394639378,-500.0,0.00019178,2]
[348212302,1736394639388,-500.0,0.00019178,2]
[348212304,1736394639399,-500.0,0.00019178,2]
[348212306,1736394639408,-500.0,0.00019178,2]
[348212308,1736394639418,-500.0,0.00019178,2]
[348212310,1736394639428,-500.0,0.00019178,2]
[348212312,1736394639437,-500.0,0.00019178,2]
[348212314,1736394639446,-500.0,0.00019178,2]
[348212316,1736394639456,-500.0,0.00019178,2]
[348212318,1736394639465,-500.0,0.00019178,2]
[348212320,1736394639475,-500.0,0.00019178,2]
[348212322,1736394639484,-500.0,0.00019178,2]
[348212324,1736394639494,-500.0,0.00019178,2]
[348212326,1736394639504,-506.36179036,0.00019178,2]
[348212328,1736394639513,-500.0,0.00019178,2]
[348212330,1736394639522,-500.0,0.00019178,2]
[348212332,1736394639531,-522.84919871,0.00019178,2]
[348212334,1736394639541,-500.0,0.00019178,2]
[348212336,1736394639550,-520.1415306,0.00019178,2]
[348212338,1736394639560,-500.0,0.00019178,2]
[348212340,1736394639571,-500.0,0.00019178,2]
[348212342,1736394639580,-500.0,0.00019178,2]
[348212344,1736394639590,-502.63035125,0.00019178,2]
[348212346,1736394639599,-500.0,0.00019178,2]
[348212348,1736394639609,-500.0,0.00019178,2]
[348212350,1736394639618,-500.0,0.00019178,2]
[348212352,1736394639628,-518.20065797,0.00019178,2]
[348212354,1736394639637,-500.0,0.00019178,2]
[348212356,1736394639646,-500.0,0.00019178,2]
[348212358,1736394639656,-500.0,0.00019178,2]
[348212360,1736394639665,-500.0,0.00019178,2]
[348212362,1736394639675,-500.0,0.00019178,2]
[348212364,1736394639684,-504.50876661,0.00019178,2]
[348212366,1736394639694,-500.0,0.00019178,2]
[348212368,1736394639704,-500.0,0.00019178,2]
[348212370,1736394639714,-500.0,0.00019178,2]
[348212373,1736394639724,-402.86066331,0.00019178,2]
[348212374,1736394639734,-500.0,0.00019178,2]
[348212377,1736394639745,-500.0,0.00019178,2]
[348212378,1736394639754,-517.91808221,0.00019178,2]
[348212380,1736394639764,-500.0,0.00019178,2]
[348212382,1736394639773,-500.0,0.00019178,2]
[348212384,1736394639783,-514.78628884,0.00019178,2]
[348212386,1736394639792,-500.0,0.00019178,2]
[348212388,1736394639801,-500.0,0.00019178,2]
[348212390,1736394639811,-500.0,0.00019178,2]
[348212392,1736394639820,-500.0,0.00019178,2]
[348212394,1736394639830,-500.0,0.00019178,2]
[348212396,1736394639839,-500.0,0.00019178,2]
[348212398,1736394639848,-500.0,0.00019178,2]
[348212400,1736394639858,-500.0,0.00019178,2]
[348212402,1736394639867,-500.0,0.00019178,2]
[348212404,1736394639876,-506.98803069,0.00019178,2]
[348212406,1736394639885,-9320.49,0.00019178,2]
[348212408,1736394639894,-500.0,0.00019178,2]
[348212410,1736394639903,-1136.722098,0.00019178,2]
[348212412,1736394639913,-584.5,0.00019178,2]
[348212414,1736394639922,-500.0,0.00019178,2]
[348212417,1736394639931,-1136.722098,0.00019178,2]
[348212419,1736394639940,-500.0,0.00019178,2]
[348212421,1736394639949,-508.87167774,0.00019178,2]
[348212423,1736394639959,-500.0,0.00019178,2]
[348212425,1736394639968,-500.0,0.00019178,2]
[348212427,1736394639977,-682.93,0.00019178,2]
[348212429,1736394639987,-509.11174282,0.00019178,2]
[348212431,1736394639996,-500.0,0.00019178,2]
[348212433,1736394640005,-500.0,0.00019178,2]
[348212435,1736394640015,-500.0,0.00019178,2]
[348212437,1736394640024,-500.0,0.00019178,2]
[348212439,1736394640033,-1000.0,0.00019178,7]
[348212441,1736394640043,-500.0,0.00019178,2]
[348212442,1736394640052,-500.0,0.00019178,2]
[348212443,1736394640061,-500.0,0.00019178,2]
[348212444,1736394640070,-500.0,0.00019178,2]
[348212445,1736394640079,-500.0,0.00019178,2]
[348212446,1736394640089,-500.0,0.00019178,2]
[348212447,1736394640098,-500.0,0.00019178,2]
[348212448,1736394640107,-505.59038227,0.00019178,2]
[348212449,1736394640116,-500.0,0.00019178,2]
[348212450,1736394640126,-1621.91,0.00019178,2]
[348212451,1736394640139,-500.0,0.00019178,2]
[348212452,1736394640148,-500.0,0.00019178,2]
[348212453,1736394640157,-500.0,0.00019178,2]
[348212454,1736394640166,-330.36651,0.00019178,2]
[348212455,1736394640177,-500.0,0.00019178,2]
[348212456,1736394640186,-500.0,0.00019178,2]
[348212457,1736394640195,-330.36651,0.00019178,2]
[348212458,1736394640205,-500.0,0.00019178,2]
[348212459,1736394640214,-500.0,0.00019178,2]
[348212460,1736394640224,-522.37832798,0.00019178,2]
[348212461,1736394640233,-500.0,0.00019178,2]
[348212463,1736394640243,-500.0,0.00019178,2]
[348212465,1736394640252,-500.0,0.00019178,2]
[348212467,1736394640261,-500.0,0.00019178,2]
[348212468,1736394640271,-510.270556,0.00019178,2]
[348212470,1736394640280,-500.0,0.00019178,2]
[348212473,1736394640289,-341.26951416,0.00019178,2]
[348212475,1736394640299,-500.0,0.00019178,2]
[348212477,1736394640308,-169.2588864,0.00019178,2]
[348212478,1736394640318,-302.63687509,0.0001919,2]
[348212481,1736394640328,-175.43212914,0.00019215,2]
[348212483,1736394640337,-300.000001,0.00019283,2]
[348212485,1736394640347,-152.0,0.00019317,2]
[348212487,1736394640356,-175.43212914,0.00019352,2]
[348212489,1736394640365,-179.46102808,0.0001938,2]
[348212491,1736394640374,-285.26482915,0.00019451,2]
[348212493,1736394640384,-596.430962,0.00019452,2]
[348212495,1736394640393,-596.430962,0.00019452,2]
[348212497,1736394640402,-151.0,0.00019452,2]
[348212499,1736394640411,-151.0,0.00019452,2]
[348212501,1736394640421,-151.0,0.00019452,2]
[348212503,1736394640430,-151.0,0.00019452,2]
[348212505,1736394640439,-283.779465,0.00019452,2]
[348212507,1736394640448,-151.0,0.00019452,2]
[348212509,1736394640458,-151.0,0.00019452,2]
[348212511,1736394640467,-283.779465,0.00019452,2]
[348212513,1736394640476,-287.089953,0.00019452,2]
[348212515,1736394640485,-151.0,0.00019452,2]
[348212517,1736394640495,-151.0,0.00019452,2]
[348212519,1736394640504,-151.0,0.00019452,2]
[348212521,1736394640514,-845.826631,0.00019452,2]
[348212523,1736394640523,-845.826631,0.00019452,2]
[348212525,1736394640532,-151.0,0.00019452,2]
[348212527,1736394640542,-151.0,0.00019452,2]
[348212529,1736394640550,-151.0,0.00019452,2]
[348212531,1736394640560,-178.212008,0.00019452,2]
[348212533,1736394640570,-178.212008,0.00019452,2]
[348212535,1736394640579,-151.0,0.00019452,2]
[348212545,1736394640660,-151.0,0.00019452,2]
[348212547,1736394640671,-151.0,0.00019452,2]
[348212549,1736394640681,-151.0,0.00019452,2]
[348212552,1736394640690,-151.0,0.00019452,2]
[348212554,1736394640700,-516.48851546,0.00019452,3]
[348212556,1736394640709,-500.0,0.00019452,3]
[348212558,1736394640718,-500.0,0.00019452,3]
[348212560,1736394640727,-470.85071243,0.00019452,3]
[348212562,1736394640736,-512.50873532,0.00019452,3]
[348212564,1736394640745,-500.0,0.00019452,3]
[348212566,1736394640754,-500.0,0.00019452,3]
[348212568,1736394640766,-513.36739843,0.00019452,3]
[348212570,1736394640775,-151.0,0.00019452,2]
[348212572,1736394640786,-266.0691,0.00019452,2]
[348212574,1736394640795,-513.77590889,0.00019452,3]
[348212576,1736394640804,-514.63765972,0.00019452,3]
[348212578,1736394640814,-258.417858,0.00019452,2]
[348212580,1736394640823,-500.0,0.00019452,3]
[348212582,1736394640833,-258.417858,0.00019452,2]
[348212584,1736394640843,-500.0,0.00019452,3]
[348212586,1736394640852,-605.56171,0.00019452,2]
[348212588,1736394640861,-605.56171,0.00019452,2]
[348212590,1736394640870,-500.0,0.00019452,3]
[348212592,1736394640881,-500.0,0.00019452,3]
[348212594,1736394640891,-500.0,0.00019452,3]
[348212596,1736394640900,-500.0,0.00019452,3]
[348212598,1736394640909,-500.0,0.00019452,3]
[348212600,1736394640919,-500.0,0.00019452,3]
[348212602,1736394640928,-151.0,0.00019452,2]
[348212604,1736394640938,-151.0,0.00019452,2]
[348212606,1736394640947,-692.138284,0.00019452,2]
[348212609,1736394640957,-500.0,0.00019452,3]
[348212610,1736394640966,-692.138284,0.00019452,2]
[348212612,1736394640975,-500.0,0.00019452,3]
[348212615,1736394640985,-500.0,0.00019452,3]
[348212617,1736394640994,-500.0,0.00019452,3]
[348212619,1736394641004,-500.0,0.00019452,3]
[348212620,1736394641015,-500.0,0.00019452,3]
[348212622,1736394641025,-265.05852547,0.00019452,3]
[348212625,1736394641036,-500.0,0.00019452,3]
[348212627,1736394641044,-500.0,0.00019452,3]
[348212629,1736394641053,-500.0,0.00019452,3]
[348212631,1736394641062,-169.927365,0.00019452,2]
[348212633,1736394641071,-169.927365,0.00019452,2]
[348212635,1736394641079,-500.0,0.00019452,3]
[348212637,1736394641088,-169.927365,0.00019452,2]
[348212639,1736394641098,-169.927365,0.00019452,2]
[348212641,1736394641108,-573.29224808,0.00019452,3]
[348212643,1736394641117,-500.0,0.00019452,3]
[348212645,1736394641126,-1978.04,0.00019452,3]
[348212647,1736394641139,-500.0,0.00019452,3]
[348212649,1736394641148,-513.20835153,0.00019452,3]
[348212651,1736394641158,-500.0,0.00019452,3]
[348212653,1736394641167,-500.0,0.00019452,3]
[348212656,1736394641178,-500.0,0.00019452,3]
[348212658,1736394641187,-500.0,0.00019452,3]
[348212660,1736394641197,-415.788374,0.00019452,2]
[348212662,1736394641206,-415.788374,0.00019452,2]
[348212664,1736394641215,-415.788374,0.00019452,2]
[348212665,1736394641225,-415.788374,0.00019452,2]
[348212668,1736394641234,-415.788374,0.00019452,2]
[348212669,1736394641243,-415.788374,0.00019452,2]
[348212671,1736394641252,-500.0,0.00019452,3]
[348212673,1736394641262,-500.0,0.00019452,3]
[348212675,1736394641271,-500.0,0.00019452,3]
[348212678,1736394641280,-503.34724987,0.00019452,3]
[348212680,1736394641289,-522.04082096,0.00019452,3]
[348212682,1736394641299,-500.0,0.00019452,3]
[348212684,1736394641307,-500.0,0.00019452,3]
[348212686,1736394641318,-510.69217213,0.00019452,3]
[348212688,1736394641327,-500.0,0.00019452,3]
[348212690,1736394641336,-500.0,0.00019452,3]
[348212692,1736394641345,-601.76899437,0.00019452,3]
[348212694,1736394641355,-500.0,0.00019452,3]
[348212696,1736394641364,-500.0,0.00019452,3]
[348212698,1736394641373,-1156.038017,0.00019452,2]
[348212700,1736394641382,-1156.038017,0.00019452,2]
[348212702,1736394641391,-506.80005364,0.00019452,3]
[348212704,1736394641400,-1015.680715,0.00019452,2]
[348212706,1736394641409,-1156.038017,0.00019452,2]
[348212708,1736394641418,-1156.038017,0.00019452,2]
[348212710,1736394641428,-500.0,0.00019452,3]
[348212712,1736394641439,-1015.680715,0.00019452,2]
[348212715,1736394641454,-243.6431228,0.00019452,3]
[348212717,1736394641468,-500.0,0.00019452,3]
[348212720,1736394641481,-500.0,0.00019452,3]
[348212722,1736394641492,-500.0,0.00019452,3]
[348212724,1736394641507,-500.0,0.00019452,3]
[348212727,1736394641519,-500.0,0.00019452,3]
[348212729,1736394641533,-500.0,0.00019452,3]
[348212732,1736394641546,-1485.722998,0.00019452,2]
[348212734,1736394641558,-1485.722998,0.00019452,2]
[348212736,1736394641574,-500.0,0.00019452,3]
[348212739,1736394641589,-981.9,0.00019452,3]
[348212742,1736394641602,-1485.722998,0.00019452,2]
[348212744,1736394641614,-1485.722998,0.00019452,2]
[348212746,1736394641627,-500.0,0.00019452,3]
[348212749,1736394641640,-639.84848969,0.00019452,3]
[348212751,1736394641654,-1193.947734,0.00019452,2]
[348212753,1736394641667,-1193.947734,0.00019452,2]
[348212756,1736394641677,-1193.947734,0.00019452,2]
[348212758,1736394641688,-1193.947734,0.00019452,2]
[348212760,1736394641701,-201.58524477,0.00019452,3]
[348212762,1736394641714,-500.0,0.00019452,3]
[348212765,1736394641726,-500.0,0.00019452,3]
[348212767,1736394641740,-500.0,0.00019452,3]
[348212770,1736394641752,-427.90937321,0.00019452,3]
[348212772,1736394641768,-580.73290165,0.00019452,3]
[348212775,1736394641781,-511.99562265,0.00019452,3]
[348212777,1736394641796,-500.0,0.00019452,3]
[348212780,1736394641808,-500.0,0.00019452,3]
[348212782,1736394641820,-500.0,0.00019452,3]
[348212784,1736394641831,-500.0,0.00019452,3]
[348212786,1736394641843,-500.0,0.00019452,3]
[348212789,1736394641856,-512.77375573,0.00019452,3]
[348212791,1736394641871,-318.69309218,0.00019452,3]
[348212794,1736394641886,-58946.48,0.00019452,2]
[348212796,1736394641896,-500.0,0.00019452,3]
[348212798,1736394641908,-509.50156019,0.00019452,3]
[348212801,1736394641921,-500.0,0.00019452,3]
[348212803,1736394641934,-558.35,0.00019452,3]
[348212805,1736394641945,-524.07715732,0.00019452,3]
[348212807,1736394641955,-500.0,0.00019452,3]
[348212809,1736394641967,-1071.29,0.00019452,3]
[348212812,1736394641978,-500.0,0.00019452,3]
[348212814,1736394641989,-500.0,0.00019452,3]
[348212816,1736394642001,-500.0,0.00019452,3]
[348212818,1736394642013,-500.0,0.00019452,3]
[348212821,1736394642024,-500.0,0.00019452,3]
[348212823,1736394642036,-500.0,0.00019452,3]
[348212825,1736394642048,-605.47647324,0.00019452,3]
[348212827,1736394642059,-500.0,0.00019452,3]
[348212829,1736394642071,-500.0,0.00019452,2]
[348212831,1736394642083,-527.54087143,0.00019452,3]
[348212833,1736394642094,-500.0,0.00019452,3]
[348212835,1736394642105,-500.0,0.00019452,3]
[348212837,1736394642116,-500.0,0.00019452,3]
[348212839,1736394642129,-500.0,0.00019452,3]
[348212841,1736394642141,-500.0,0.00019452,3]
[348212843,1736394642152,-509.06761552,0.00019452,3]
[348212845,1736394642163,-500.0,0.00019452,3]
[348212847,1736394642176,-500.0,0.00019452,3]
[348212848,1736394642187,-500.0,0.00019452,3]
[348212850,1736394642198,-500.0,0.00019452,3]
[348212852,1736394642211,-500.0,0.00019452,3]
[348212855,1736394642223,-500.0,0.00019452,3]
[348212857,1736394642235,-500.0,0.00019452,3]
[348212859,1736394642247,-519.60769988,0.00019452,3]
[348212861,1736394642259,-500.0,0.00019452,3]
[348212863,1736394642271,-500.0,0.00019452,3]
[348212865,1736394642282,-500.0,0.00019452,3]
[348212867,1736394642293,-500.0,0.00019452,3]
[348212869,1736394642304,-447.67266635,0.00019452,3]
[348212870,1736394642316,-500.0,0.00019452,3]
[348212872,1736394642327,-500.0,0.00019452,3]
[348212874,1736394642338,-500.0,0.00019452,3]
[348212876,1736394642349,-500.0,0.00019452,3]
[348212878,1736394642360,-500.0,0.00019452,3]
[348212880,1736394642372,-500.0,0.00019452,3]
[348212882,1736394642383,-500.0,0.00019452,3]
[348212884,1736394642394,-500.0,0.00019452,3]
[348212886,1736394642406,-500.0,0.00019452,3]